bitfinex-derivatives/quotes_ETHF0:USTF0_20241004
["timestamp","ask_amount","ask_price","bid_price","bid_amount"]
[1728058791588,3.2078,2432.2,2432.0,4.1096]
[1728058791778,0.41122,2432.1,2432.0,4.1096]
[1728058792385,0.41122,2432.1,2431.7,3.2078]
[1728058792386,3.2078,2432.2,2431.7,3.2078]
[1728058792578,0.41127,2431.8,2431.7,7.3174]
[1728058792885,0.41136,2431.4,2431.1,7.6578]
[1728058793190,0.41136,2431.3,2431.2,4.1096]
[1728058793986,4.23612,2431.6,2430.9,3.2078]
[1728058793987,0.41142,2431.0,2430.9,3.2078]
[1728058794182,0.41139,2431.1,2430.9,3.2078]
[1728058794383,3.2078,2431.6,2431.2,4.1096]
[1728058794582,3.2078,2431.6,2431.3,4.1096]
[1728058794583,0.41134,2431.4,2431.3,4.1096]
[1728058794882,1.02798,2432.3,2431.5,4.1096]
[1728058795084,4.03386,2432.5,2432.2,4.1096]
[1728058795276,3.2078,2432.5,2432.4,4.1096]
[1728058795482,1.02764,2433.1,2432.4,4.1096]
[1728058795786,3.2078,2433.2,2432.6,4.1096]
[1728058796086,0.41112,2432.7,2432.6,4.1096]
[1728058797300,11.13824,2432.7,2431.9,7.6578]
[1728058797587,0.41117,2432.4,2432.3,4.1096]
[1728058797892,4.23553,2432.9,2432.3,4.1096]
[1728058798189,0.41116,2432.5,2432.3,4.1096]
[1728058798488,1.0278,2432.8,2432.3,4.1096]
[1728058798686,4.23553,2432.9,2432.3,4.1096]
[1728058798687,1.02781,2432.7,2432.3,4.1096]
[1728058799189,0.41117,2432.5,2432.3,4.1096]
[1728058799592,0.41117,2432.4,2432.3,4.1096]
[1728058799793,4.23553,2432.9,2432.5,4.1096]
[1728058800102,0.41114,2432.6,2432.5,4.1096]
[1728058801688,4.23553,2432.9,2432.2,3.2078]
[1728058801884,4.23553,2432.9,2432.2,4.1096]
[1728058801885,3.2078,2432.9,2432.2,4.1096]
[1728058802090,0.41117,2432.4,2432.3,4.1096]
[1728058802387,0.41117,2432.4,2431.5,0.8167]
[1728058802388,1.0279,2432.5,2431.6,3.2078]
[1728058802597,0.41122,2432.1,2432.0,4.1096]
[1728058802994,0.41127,2431.8,2431.3,3.61915]
[1728058803201,3.2078,2431.6,2431.1,4.1096]
[1728058803493,5.2822,2432.3,2431.1,4.1096]
[1728058803494,3.61917,2431.3,2431.1,4.1096]
[1728058803694,0.41138,2431.2,2431.1,4.1096]
[1728058803898,3.61917,2431.3,2431.2,4.1096]
[1728058804093,3.2078,2431.3,2431.2,4.1096]
[1728058804490,3.61916,2431.3,2431.2,4.1096]
[1728058805990,3.61916,2431.3,2430.7,4.02565]
[1728058805991,3.2078,2431.3,2430.7,3.2078]
[1728058806189,3.2078,2431.3,2431.1,4.1096]
[1728058806190,0.41138,2431.2,2431.1,4.1096]
[1728058807697,0.41138,2431.2,2430.7,3.2078]
[1728058807698,6.0,2431.2,2430.3,3.2078]
[1728058807895,3.2078,2431.3,2431.0,4.1096]
[1728058807896,0.41139,2431.1,2431.0,4.1096]
[1728058808309,3.2078,2431.3,2431.1,0.41139]
[1728058808594,3.61917,2431.3,2431.2,4.1096]
[1728058808793,3.2078,2431.3,2431.2,4.1096]
[1728058808997,3.61916,2431.3,2431.2,4.1096]
[1728058809896,0.41141,2431.0,2430.9,3.2078]
[1728058810097,3.2078,2431.3,2430.9,7.3174]
[1728058810302,0.41141,2431.0,2430.9,7.3174]
[1728058812098,0.41139,2431.2,2430.9,7.72882]
[1728058812299,3.2078,2431.3,2431.1,4.1096]
[1728058812696,3.2078,2431.3,2430.9,3.2078]
[1728058812697,0.41141,2431.0,2430.9,3.2078]
[1728058812897,0.41141,2431.0,2430.9,7.3174]
[1728058813305,0.41141,2431.0,2430.9,4.1096]
[1728058813603,0.4115,2430.5,2430.2,0.41153]
[1728058813803,0.41146,2430.7,2430.6,4.1096]
[1728058814598,0.41143,2430.9,2430.6,4.52107]
[1728058814809,0.41141,2431.0,2430.9,4.1096]
[1728058815702,0.41146,2430.7,2430.3,3.61932]
[1728058816002,1.0286,2430.9,2430.3,3.61932]
[1728058816204,0.41144,2430.8,2430.7,4.1096]
[1728058818605,4.23635,2431.0,2430.7,4.1096]
[1728058818909,3.61921,2431.0,2430.9,4.1096]
[1728058820310,3.2078,2431.0,2430.9,4.1096]
[1728058820610,0.41141,2431.0,2430.9,4.1096]
[1728058820810,0.41141,2431.1,2430.9,4.1096]
[1728058821005,0.41141,2431.1,2430.7,0.41146]
[1728058821206,0.41141,2431.1,2430.6,3.2078]
[1728058821207,0.41141,2431.1,2431.0,4.1096]
[1728058821606,4.63781,2431.3,2431.0,4.1096]
[1728058821607,3.61917,2431.3,2431.0,4.1096]
[1728058821811,3.61917,2431.3,2430.9,0.41143]
[1728058821812,0.41132,2431.6,2431.2,4.1096]
[1728058822012,0.41132,2431.6,2431.4,4.1096]
[1728058822513,3.6131,2431.9,2431.5,4.1096]
[1728058822716,3.6131,2431.9,2431.8,4.1096]
[1728058822717,4.02436,2431.9,2431.8,4.1096]
[1728058823014,3.2078,2431.9,2431.8,4.1096]
[1728058823313,3.61906,2431.9,2431.8,4.1096]
[1728058823503,3.2078,2431.9,2431.8,4.1096]
[1728058823709,3.6308,2432.5,2431.8,4.1096]
[1728058823909,0.41122,2432.1,2432.0,4.1096]
[1728058824209,6.0,2432.1,2431.6,4.1096]
[1728058824404,0.41136,2431.3,2431.0,1.1861]
[1728058824605,3.2078,2431.6,2431.2,4.1096]
[1728058824806,3.2078,2431.6,2430.5,3.2078]
[1728058825007,0.41141,2431.0,2430.9,4.1096]
[1728058826316,1.02845,2431.2,2430.9,4.1096]
[1728058826612,43.97005319,2432.4,2431.1,4.1096]
[1728058826613,3.5941,2431.7,2431.1,4.1096]
[1728058826822,3.5941,2431.7,2431.4,4.1096]
[1728058827111,0.41133,2431.5,2431.4,4.1096]
[1728058827306,3.5941,2431.7,2431.5,4.1096]
[1728058827504,0.41132,2431.6,2430.9,1.02857]
[1728058827705,0.41133,2431.5,2431.1,3.2078]
[1728058827915,0.41133,2431.5,2431.1,3.61918]
[1728058828210,4.62235,2431.7,2431.4,4.1096]
[1728058828211,3.5941,2431.7,2431.4,4.1096]
[1728058828516,0.41133,2431.5,2431.1,3.61918]
[1728058828718,3.5941,2431.7,2431.6,4.1096]
[1728058828913,0.41131,2431.6,2431.5,4.1096]
[1728058829119,4.0054,2431.7,2431.6,4.1096]
[1728058831011,4.00539,2431.7,2431.6,4.1096]
[1728058832513,4.00539,2431.7,2431.1,3.2078]
[1728058832514,0.41133,2431.5,2431.1,3.61919]
[1728058832723,0.41133,2431.5,2431.4,4.1096]
[1728058833105,0.41138,2431.2,2430.8,4.01644]
[1728058833309,0.41138,2431.2,2431.1,4.1096]
[1728058833512,1.02828,2431.6,2431.1,4.1096]
[1728058833711,0.41133,2431.5,2431.2,4.1096]
[1728058834107,1.02828,2431.6,2431.2,4.1096]
[1728058834311,0.41135,2431.4,2431.2,4.1096]
[1728058834611,3.5941,2431.7,2431.2,4.1096]
[1728058834816,0.41136,2431.3,2431.2,4.1096]
[1728058835012,1.02832,2431.5,2431.2,4.1096]
[1728058835216,0.41132,2431.6,2431.4,4.1096]
[1728058835615,0.41132,2431.6,2430.9,3.2078]
[1728058835616,4.0054,2431.7,2431.5,4.1096]
[1728058836113,4.0054,2431.7,2431.6,4.1096]
[1728058838116,3.5941,2431.7,2431.6,4.1096]
[1728058838325,4.00539,2431.7,2431.6,4.1096]
[1728058839426,3.5941,2431.7,2431.6,4.1096]
[1728058839617,4.00539,2431.7,2431.6,4.1096]
[1728058841022,0.41135,2431.4,2431.0,0.4114]
[1728058841422,0.41135,2431.4,2429.0,4.169]
[1728058841617,1.0283,2431.6,2430.7,3.2078]
[1728058841816,3.5941,2431.7,2430.7,3.2078]
[1728058841817,1.61088801,2431.2,2430.7,3.2078]
[1728058842017,1.61088801,2431.3,2430.8,4.97862]
[1728058842218,1.61088801,2431.3,2431.2,0.41138]
[1728058842525,1.61088801,2431.3,2431.1,0.41138]
[1728058842818,2.14785068,2431.8,2431.1,3.95]
[1728058843020,2.14785068,2432.0,2431.8,0.41126]
[1728058843222,2.14785068,2432.0,2431.4,0.41133]
[1728058843223,0.41128,2431.8,2431.4,0.41133]
[1728058843421,2.14785068,2431.9,2431.4,1.02836]
[1728058843719,2.14785068,2431.9,2431.3,3.2078]
[1728058843720,0.41128,2431.8,2431.5,0.41132]
[1728058843928,2.14785068,2431.9,2431.6,0.4113]
[1728058844121,2.14785068,2431.9,2431.3,3.2078]
[1728058844425,0.41131,2431.6,2431.4,0.41133]
[1728058844624,2.14785068,2431.9,2431.8,0.41127]
[1728058844819,2.14785068,2431.9,2431.5,0.41133]
[1728058845021,2.14785068,2431.9,2431.4,3.95]
[1728058845426,0.41128,2431.8,2431.6,0.4113]
[1728058845918,0.41128,2431.8,2431.6,4.5233]
[1728058846224,2.14785068,2431.9,2431.8,0.41127]
[1728058846431,2.55910068,2432.0,2431.8,0.41127]
[1728058846630,2.55910068,2432.0,2431.8,4.52327]
[1728058846927,2.55910068,2432.0,2431.6,3.2078]
[1728058846928,2.55911068,2431.9,2431.7,0.41128]
[1728058847235,2.14785068,2431.9,2431.8,0.41127]
[1728058847729,2.14785068,2431.9,2431.8,4.52327]
[1728058848224,2.14785068,2431.9,2431.8,4.112]
[1728058848429,2.14785068,2431.9,2431.8,4.52327]
[1728058849431,2.14785068,2432.0,2431.8,10.112]
[1728058849623,2.14785068,2432.0,2431.9,4.52326]
[1728058849825,2.14785068,2432.1,2431.6,3.2078]
[1728058850123,2.14785068,2432.1,2431.8,0.41126]
[1728058850124,2.55909068,2432.1,2431.8,0.41126]
[1728058850329,0.41125,2432.0,2431.8,0.41126]
[1728058850632,2.14785068,2432.1,2431.6,3.2078]
[1728058850930,2.55910068,2432.0,2431.7,0.41128]
[1728058851132,0.41125,2432.0,2431.8,0.41127]
[1728058851326,2.55910068,2432.0,2431.8,0.41127]
[1728058851632,2.14785068,2432.0,2431.9,0.41126]
[1728058851837,2.14785068,2432.0,2431.8,4.52326]
[1728058852130,3.17600068,2431.9,2431.6,3.2078]
[1728058852433,0.41129,2431.7,2431.6,3.2078]
[1728058852621,2.14785068,2431.8,2431.2,3.2466]
[1728058852821,0.41131,2431.7,2431.4,0.41133]
[1728058853024,0.41131,2431.7,2431.5,0.41132]
[1728058853225,2.55914068,2431.8,2431.6,0.41131]
[1728058853831,0.41129,2431.8,2431.6,0.41131]
[1728058854338,0.41129,2431.8,2431.3,1.0284]
[1728058854533,2.55914068,2431.8,2431.5,0.41131]
[1728058855029,0.4113,2431.7,2431.5,0.41131]
[1728058855231,2.14785068,2431.8,2431.5,0.41131]
[1728058855232,2.55914068,2431.8,2431.5,0.41131]
[1728058855437,0.4113,2431.7,2431.5,0.41131]
[1728058855735,2.14785068,2431.8,2431.2,3.2078]
[1728058855936,2.14785068,2431.7,2431.6,0.41131]
[1728058856135,2.14785068,2431.8,2431.2,4.23623]
[1728058856432,2.14785068,2431.8,2431.1,4.09270045]
[1728058856824,2.14785068,2431.8,2431.3,3.2078]
[1728058857037,2.55914068,2431.8,2431.3,3.2078]
[1728058857240,0.4113,2431.7,2431.4,0.41133]
[1728058857440,0.4113,2431.7,2431.5,0.41132]
[1728058857634,2.14785068,2431.8,2431.3,3.2078]
[1728058857837,2.14785068,2431.8,2431.7,0.41129]
[1728058858135,2.14785068,2431.9,2431.8,0.41127]
[1728058858335,2.55911068,2431.9,2431.7,0.41128]
[1728058858538,0.41126,2431.9,2431.7,0.41128]
[1728058858727,5.35565068,2432.0,2431.4,1.02836]
[1728058858932,2.55911068,2431.9,2431.7,0.41128]
[1728058859132,0.41126,2431.9,2431.6,0.41129]
[1728058859442,2.55910068,2432.0,2431.5,1.02832]
[1728058859639,0.41127,2431.9,2431.6,0.41129]
[1728058859935,0.41127,2431.9,2431.7,0.41128]
[1728058859936,2.55911068,2431.9,2431.7,0.41128]
[1728058860141,3.17597068,2432.0,2431.4,1.02836]
[1728058860547,2.55910068,2432.0,2431.8,0.41127]
[1728058860843,0.41128,2431.8,2431.6,0.4113]
[1728058861140,0.41128,2431.8,2431.3,7.1578]
[1728058861141,0.41129,2431.7,2431.5,0.41132]
[1728058861629,2.14785068,2431.8,2431.3,3.2078]
[1728058861630,4.1128,2431.6,2431.3,3.2078]
[1728058861835,2.55505068,2431.6,2430.9,4.23637]
[1728058862040,0.41135,2431.4,2431.2,0.41136]
[1728058862240,2.55920068,2431.4,2431.2,0.41136]
[1728058862429,4.12030335,2431.6,2431.3,0.41136]
[1728058862430,2.55919068,2431.5,2431.3,0.41136]
[1728058862637,2.14785068,2431.5,2430.9,3.2078]
[1728058862832,2.14785068,2431.5,2431.4,0.41134]
[1728058863032,3.09201335,2431.6,2431.5,0.41133]
[1728058863230,2.68481335,2431.7,2431.6,0.41131]
[1728058863443,3.2078,2432.0,2431.9,0.41126]
[1728058863744,0.41123,2432.1,2432.0,0.41124]
[1728058863745,2.1496486,2432.1,2432.0,0.41124]
[1728058864041,2.1496486,2432.2,2431.8,4.23599]
[1728058864236,2.1496486,2432.2,2432.1,0.41122]
[1728058864637,2.1496486,2432.2,2431.9,0.41126]
[1728058864843,2.1496486,2432.1,2431.5,3.2078]
[1728058865035,2.1496486,2432.0,2431.6,0.41129]
[1728058865236,2.5609186,2431.9,2431.3,4.09332454]
[1728058865435,2.5609186,2431.9,2431.6,0.4113]
[1728058865643,0.41128,2431.8,2431.6,0.4113]
[1728058865833,0.41128,2431.8,2431.3,4.9784]
[1728058866036,2.1496486,2431.9,2431.2,3.2078]
[1728058866037,3.1778086,2431.9,2431.2,3.2078]
[1728058866243,0.4173,2431.7,2431.2,3.2078]
[1728058866445,0.4173,2431.7,2431.5,3.2078]
[1728058866865,0.4173,2431.7,2431.2,3.2078]
[1728058867147,1.02828,2431.6,2430.9,4.23636]
[1728058867360,3.1779686,2431.5,2430.9,3.2078]
[1728058867539,0.41137,2431.3,2430.9,3.2078]
[1728058867731,2.1496486,2431.4,2430.9,3.2078]
[1728058867937,2.1496486,2431.0,2430.4,1.02879]
[1728058868138,2.5539486,2430.9,2430.3,1.0288]
[1728058868348,2.5539486,2430.9,2430.8,0.41144]
[1728058868743,2.1496486,2431.0,2430.9,0.41143]
[1728058868946,2.1496486,2431.2,2431.0,0.4114]
[1728058869140,2.1496486,2431.2,2430.6,4.23649]
[1728058869351,2.1496486,2431.2,2430.9,0.41141]
[1728058869647,2.1496486,2431.1,2430.9,0.41141]
[1728058869842,2.1496486,2431.1,2431.0,0.41141]
[1728058870049,2.1496486,2431.1,2430.6,4.23649]
[1728058870250,2.1496486,2431.1,2431.0,0.41141]
[1728058870643,2.1496486,2431.2,2431.1,0.41139]
[1728058870843,2.1496486,2431.3,2431.2,0.41138]
[1728058871046,2.1496486,2431.3,2431.0,1.02852]
[1728058871047,2.1496486,2431.4,2431.3,0.41136]
[1728058871847,2.1496486,2431.5,2431.3,0.41136]
[1728058872052,4.79677228,2432.1,2431.3,0.41136]
[1728058872053,3.76868228,2433.2,2432.7,0.41112]
[1728058872246,0.4076,2433.4,2432.7,8.0604]
[1728058872458,0.4076,2433.4,2433.3,0.41102]
[1728058872641,0.4076,2433.4,2433.3,7.72842]
[1728058873244,0.7749,2434.1,2433.3,13.3174]
[1728058873445,0.7749,2434.1,2433.1,4.97762]
[1728058873446,0.7749,2434.1,2433.8,0.41093]
[1728058873853,0.7749,2434.1,2433.6,3.2078]
[1728058874552,0.7749,2434.1,2433.8,0.41092]
[1728058875856,0.7749,2434.1,2433.8,0.41093]
[1728058876060,0.7749,2434.1,2433.6,3.2078]
[1728058876359,0.7749,2434.1,2433.8,0.41093]
[1728058876655,0.7749,2434.1,2433.8,0.41092]
[1728058877046,0.7749,2434.1,2433.6,3.2078]
[1728058877248,1.027,2434.7,2434.0,3.2078]
[1728058877249,0.41079,2434.7,2434.0,3.2078]
[1728058877449,4.0032,2434.9,2433.9,3.95]
[1728058877755,4.0032,2434.9,2433.6,15.84123058]
[1728058877948,0.41087,2434.2,2433.6,7.1578]
[1728058878145,1.02694,2434.8,2433.6,3.2078]
[1728058878146,0.41086,2434.3,2433.6,3.2078]
[1728058878454,0.41086,2434.3,2433.3,5.12254358]
[1728058878455,3.2078,2433.9,2433.3,0.41101]
[1728058878657,3.61873,2433.9,2433.0,3.2078]
[1728058878952,0.41094,2433.8,2433.3,3.61881]
[1728058879255,3.2078,2433.9,2432.8,3.2078]
[1728058879456,3.2078,2433.9,2432.8,7.1578]
[1728058879653,3.61873,2433.9,2433.4,0.411]
[1728058879852,3.61873,2433.9,2433.4,0.41099]
[1728058880154,3.61873,2433.9,2433.3,3.6188]
[1728058880353,3.61873,2433.9,2433.4,0.411]
[1728058880661,0.7782,2434.0,2433.3,3.2078]
[1728058880951,0.3879,2434.1,2434.0,0.4109]
[1728058882953,0.3879,2434.1,2433.7,7.1578]
[1728058883557,0.3879,2434.1,2434.0,0.4109]
[1728058884064,0.3879,2434.1,2433.9,0.41091]
[1728058884251,3.2078,2434.5,2434.1,0.41088]
[1728058884452,3.2078,2434.5,2433.7,7.1578]
[1728058884656,3.61863,2434.5,2434.0,0.4109]
[1728058885056,0.41084,2434.4,2433.9,0.41091]
[1728058885760,3.61863,2434.5,2434.0,0.4109]
[1728058886355,0.41084,2434.4,2433.9,0.4109]
[1728058886557,3.2078,2434.0,2433.1,3.2078]
[1728058886751,3.2078,2434.0,2432.7,1.23478]
[1728058886752,1.02737,2433.8,2432.7,8.18558]
[1728058886957,0.41095,2433.8,2433.4,0.411]
[1728058887460,0.41097,2433.7,2433.3,0.41101]
[1728058887662,0.41097,2433.7,2433.4,0.411]
[1728058887866,0.41097,2433.7,2433.3,0.41101]
[1728058888259,1.1905,2433.9,2433.2,0.41103]
[1728058888461,1.02739,2433.7,2432.9,3.2078]
[1728058888662,1.02757,2433.3,2432.7,0.41112]
[1728058888860,0.4233,2433.2,2433.0,0.41107]
[1728058889166,0.4233,2433.2,2433.0,0.41106]
[1728058889763,0.4233,2433.2,2432.5,3.2078]
[1728058889959,1.02764,2433.1,2432.6,0.41113]
[1728058890161,0.41111,2432.8,2432.3,3.95]
[1728058890372,1.45092,2433.2,2432.2,0.4112]
[1728058890373,0.41117,2432.5,2432.2,0.4112]
[1728058890666,3.2078,2432.8,2431.7,7.1578]
[1728058890870,0.4112,2432.3,2432.1,0.41122]
[1728058891072,0.4112,2432.3,2431.4,1.02834]
[1728058891073,0.4233,2432.4,2431.9,3.2078]
[1728058891365,0.41126,2431.9,2431.7,0.41128]
[1728058891568,1.8235,2432.3,2431.9,0.41126]
[1728058891871,0.41125,2432.0,2431.8,0.41127]
[1728058892170,0.41129,2431.8,2431.6,3.6191]
[1728058892363,4.23583,2432.2,2431.6,3.2078]
[1728058892567,0.41129,2431.7,2431.6,3.2078]
[1728058893072,0.41132,2431.6,2431.4,0.41134]
[1728058893261,0.41132,2431.6,2431.1,3.95]
[1728058893262,1.02818,2431.9,2431.1,3.95]
[1728058893575,0.41131,2431.6,2431.4,0.41133]
[1728058894271,0.41131,2431.6,2431.2,0.41138]
[1728058894477,0.41131,2431.6,2431.4,0.41133]
[1728058894765,1.02807,2432.1,2431.4,0.41133]
[1728058894960,0.41133,2431.5,2431.4,0.41133]
[1728058895374,1.02811,2432.0,2431.1,3.95]
[1728058895668,0.41132,2431.6,2431.1,3.95]
[1728058895977,4.7455,2432.3,2431.3,0.41135]
[1728058895978,0.41134,2431.4,2431.3,0.41135]
[1728058896163,1.02824,2431.7,2431.3,0.41135]
[1728058896164,0.41133,2431.5,2431.3,0.41135]
[1728058896879,0.41133,2431.5,2431.1,3.95]
[1728058896880,0.4113,2431.7,2431.5,0.41132]
[1728058897360,0.41131,2431.6,2431.5,0.41132]
[1728058897563,0.4113,2431.7,2431.2,0.41138]
[1728058897774,0.41131,2431.6,2431.4,0.41134]
[1728058897968,0.41131,2431.7,2431.5,0.41132]
[1728058898471,0.41133,2431.5,2431.3,3.2078]
[1728058898662,3.2078,2431.9,2431.3,3.2078]
[1728058898864,0.41131,2431.6,2431.5,0.41132]
[1728058899063,0.8025,2431.7,2431.5,0.41132]
[1728058899266,0.8025,2431.7,2431.5,0.41131]
[1728058899464,0.3912,2431.7,2431.6,0.41131]
[1728058899664,0.3912,2431.7,2431.5,0.41132]
[1728058899871,0.41131,2431.6,2431.5,0.41132]
[1728058900073,0.3912,2431.7,2431.6,0.41131]
[1728058900772,3.2078,2431.9,2431.8,0.41127]
[1728058901170,0.41123,2432.1,2431.7,3.2078]
[1728058901369,0.41123,2432.1,2432.0,0.41124]
[1728058901573,4.0033,2432.3,2432.2,0.41121]
[1728058901574,3.2078,2432.3,2432.2,0.41121]
[1728058901762,3.2078,2432.3,2431.7,7.1578]
[1728058901968,0.41124,2432.1,2431.9,0.41125]
[1728058902462,0.41122,2432.2,2432.0,0.41123]
[1728058902978,0.41122,2432.2,2431.7,1.02824]
[1728058903277,0.41123,2432.1,2432.0,0.41123]
[1728058903873,1.02797,2432.4,2431.5,1.17574921]
[1728058904171,1.02817,2431.9,2431.4,3.2078]
[1728058904382,0.41133,2431.5,2431.1,3.2078]
[1728058904566,0.41133,2431.5,2431.3,0.41135]
[1728058904877,0.41134,2431.5,2431.3,0.41135]
[1728058905077,1.02825,2431.7,2431.3,0.41135]
[1728058905078,0.41134,2431.4,2431.3,0.41135]
[1728058905279,1.02825,2431.7,2431.1,3.2078]
[1728058905479,0.41132,2431.6,2431.5,0.41133]
[1728058905670,0.41131,2431.6,2431.5,0.41133]
[1728058905976,0.41131,2431.6,2431.1,4.23627]
[1728058906170,0.41133,2431.5,2431.4,0.41134]
[1728058906576,1.42091,2431.8,2431.1,3.2078]
[1728058906766,7.1578,2431.7,2431.1,3.2078]
[1728058906968,7.1578,2431.7,2430.5,3.35387034]
[1728058907172,0.41149,2430.6,2430.5,0.41149]
[1728058908268,0.41147,2430.7,2430.6,0.41147]
[1728058908780,1.02862,2430.8,2430.2,3.2078]
[1728058909081,1.02862,2430.8,2430.4,0.4115]
[1728058909275,1.02862,2430.8,2430.2,3.2078]
[1728058909577,0.4115,2430.5,2430.4,0.4115]
[1728058909975,1.8744,2430.9,2430.2,3.2078]
[1728058910172,0.41147,2430.7,2430.2,4.23665]
[1728058910380,0.41147,2430.7,2430.6,0.41148]
[1728058910680,0.41148,2430.6,2430.5,0.41148]
[1728058911372,1.8744,2430.9,2430.5,0.41148]
[1728058911579,0.41147,2430.7,2430.5,0.41148]
[1728058912172,1.8744,2430.9,2430.5,0.41148]
[1728058912381,0.41147,2430.7,2430.5,0.41148]
[1728058913478,0.41149,2430.6,2430.3,0.41151]
[1728058913675,1.02862,2430.8,2430.2,3.2078]
[1728058913869,0.8458,2430.9,2430.2,3.2078]
[1728058914077,0.41147,2430.7,2430.4,0.4115]
[1728058914280,0.41148,2430.6,2430.4,0.4115]
[1728058914783,0.41147,2430.7,2430.5,0.41149]
[1728058916179,1.8744,2430.9,2430.6,0.41147]
[1728058916180,0.41145,2430.8,2430.6,0.41147]
[1728058916475,0.41146,2430.7,2430.5,0.41148]
[1728058916675,1.8744,2430.9,2430.5,0.41148]
[1728058916879,1.8744,2430.9,2430.2,3.2078]
[1728058917185,0.41147,2430.7,2430.5,0.41149]
[1728058918479,0.41148,2430.6,2430.4,0.4115]
[1728058919078,0.41148,2430.6,2430.5,0.41149]
[1728058919587,1.02863,2430.8,2430.5,0.41149]
[1728058919885,0.41147,2430.7,2430.5,0.41149]
[1728058920084,0.41148,2430.6,2430.5,0.41149]
[1728058920284,0.41148,2430.6,2430.2,3.2078]
[1728058920481,3.2078,2431.3,2430.5,3.95]
[1728058920685,0.4666,2432.0,2431.1,1.02849]
[1728058920894,0.41126,2431.9,2431.7,0.41128]
[1728058921083,0.41125,2432.0,2431.8,0.41127]
[1728058921285,0.41125,2432.0,2431.7,0.41129]
[1728058921579,3.2078,2432.1,2431.6,3.2078]
[1728058921776,3.2078,2432.1,2432.0,0.41124]
[1728058922177,7.3198,2432.1,2431.6,3.2078]
[1728058922486,0.41128,2431.8,2431.2,4.43553]
[1728058922682,0.41128,2431.8,2431.6,3.6191]
[1728058923086,0.41128,2431.8,2431.7,0.41129]
[1728058923390,0.41128,2431.8,2431.6,3.6191]
[1728058923689,0.41131,2431.6,2431.4,0.41133]
[1728058923886,0.4762,2432.0,2431.0,4.09073668]
[1728058924089,0.41136,2431.3,2431.1,0.41138]
[1728058924296,7.1578,2431.8,2431.0,3.2078]
[1728058924588,0.41128,2431.8,2431.7,0.41129]
[1728058924782,1.94654,2432.0,2431.2,3.95]
[1728058924783,0.9184,2432.0,2431.2,3.95]
[1728058925084,0.41126,2431.9,2431.8,0.41127]
[1728058925286,0.4762,2432.0,2431.9,0.41126]
[1728058925582,0.41129,2431.7,2431.6,3.6191]
[1728058925784,1.02811,2432.0,2431.6,0.4113]
[1728058925785,0.41129,2431.8,2431.6,0.4113]
[1728058925989,0.41129,2431.7,2431.6,0.4113]
[1728058926188,0.41129,2431.7,2431.3,3.2078]
[1728058926391,0.41129,2431.8,2431.6,0.41131]
[1728058926691,0.41129,2431.8,2431.7,0.41129]
[1728058926891,3.6642,2432.1,2431.5,0.41132]
[1728058926892,0.41132,2431.6,2431.5,0.41132]
[1728058927482,0.4113,2431.7,2431.6,0.41131]
[1728058927881,0.4113,2431.7,2431.1,3.95]
[1728058928082,0.41131,2431.6,2431.5,0.41131]
[1728058928491,0.4113,2431.7,2431.6,0.4113]
[1728058928687,0.41127,2431.9,2431.8,0.41127]
[1728058929682,3.6642,2432.1,2431.6,4.23608]
[1728058929991,0.41124,2432.0,2431.8,0.41126]
[1728058930195,0.4113,2431.7,2431.6,0.4113]
[1728058930489,1.02811,2432.0,2431.3,1.0284]
[1728058930689,0.4113,2431.7,2431.6,0.4113]
[1728058931178,3.6642,2432.1,2431.2,7.3957]
[1728058931386,0.9363,2432.6,2431.8,7.1578]
[1728058931387,5.17197,2432.6,2431.8,7.1578]
[1728058931589,0.41122,2432.2,2432.1,0.41122]
[1728058931787,0.4112,2432.3,2432.2,0.4112]
[1728058932083,1.0279,2432.5,2432.4,0.41117]
[1728058932084,0.41117,2432.5,2432.4,0.41117]
[1728058932387,4.1112,2432.5,2432.2,3.95]
[1728058932587,3.2078,2432.6,2432.5,0.41116]
[1728058933086,3.61894,2432.6,2432.5,0.41116]
[1728058933283,3.2078,2432.6,2432.5,0.41116]
[1728058933984,3.6575,2433.2,2432.4,3.95]
[1728058934284,0.4519,2433.0,2432.4,3.95]
[1728058934782,0.4519,2433.0,2432.8,0.41111]
[1728058934783,0.41109,2432.9,2432.8,0.41111]
[1728058934981,0.4519,2433.0,2432.8,0.41111]
[1728058935184,0.4519,2433.0,2432.5,1.02789]
[1728058935185,0.4519,2433.0,2432.7,3.95]
[1728058935389,3.6575,2433.2,2432.7,3.95]
[1728058935784,0.41106,2433.1,2433.0,0.41106]
[1728058935991,3.63718971,2433.5,2433.0,3.95]
[1728058935992,0.4828,2433.5,2433.0,3.95]
[1728058936288,3.2078,2433.6,2433.4,4.361]
[1728058936591,0.41099,2433.5,2433.4,3.95]
[1728058936785,0.41104,2433.2,2433.0,4.36106]
[1728058936981,0.41104,2433.2,2433.0,3.95]
[1728058937181,0.41105,2433.1,2433.0,3.95]
[1728058937380,1.02758,2433.3,2433.0,3.95]
[1728058937579,0.41105,2433.1,2433.0,3.95]
[1728058938787,3.2078,2433.6,2433.0,3.95]
[1728058938979,3.2078,2433.6,2433.3,0.41102]
[1728058939187,3.2078,2433.6,2433.0,3.95]
[1728058939389,4.23525,2433.6,2433.2,0.41104]
[1728058939887,4.23525,2433.6,2433.1,0.41105]
[1728058939888,0.41103,2433.3,2433.1,0.41105]
[1728058940286,0.41105,2433.2,2433.0,4.36106]
[1728058940490,0.41105,2433.1,2433.0,3.95]
[1728058941192,0.41105,2433.1,2433.0,4.36107]
[1728058941396,0.41105,2433.1,2433.0,3.95]